fUST/lending_fUST_20250719
["ID","MTS","AMOUNT","RATE_DAILY","PERIOD"]
[373200176,1752903059776,-460.0,0.00018904,2]
[373200177,1752903059785,-460.0,0.00018904,2]
[373200178,1752903059794,-1442.04,0.00018904,2]
[373200179,1752903059804,-460.0,0.00018904,2]
[373200180,1752903059813,-584.9,0.00018904,2]
[373200181,1752903059822,-633.79,0.00018904,2]
[373200182,1752903059831,-460.0,0.00018904,2]
[373200183,1752903059840,-2208.01,0.00018904,2]
[373200184,1752903059849,-2144.38,0.00018904,2]
[373200185,1752903059859,-460.0,0.00018904,2]
[373200186,1752903059868,-460.0,0.00018904,2]
[373200187,1752903059877,-460.0,0.00018904,2]
[373200188,1752903059886,-782.71,0.00018904,2]
[373200189,1752903059896,-1171.09,0.00018904,2]
[373200190,1752903059908,-460.0,0.00018904,2]
[373200191,1752903059917,-1364.49,0.00018904,2]
[373200192,1752903059926,-461.87,0.00018904,2]
[373200193,1752903059937,-583.74,0.00018904,2]
[373200194,1752903059951,-460.0,0.00018904,2]
[373200195,1752903059960,-460.0,0.00018904,2]
[373200196,1752903059972,-759.08,0.00018904,2]
[373200197,1752903059981,-1623.5,0.00018904,2]
[373200198,1752903059991,-460.0,0.00018904,2]
[373200199,1752903060000,-460.0,0.00018904,2]
[373200200,1752903060009,-460.0,0.00018904,2]
[373200201,1752903060019,-460.0,0.00018904,2]
[373200202,1752903060028,-491.03,0.00018904,2]
[373200203,1752903060038,-460.0,0.00018904,2]
[373200204,1752903060048,-525.35,0.00018904,2]
[373200205,1752903060058,-473.37,0.00018904,2]
[373200206,1752903060068,-2274.07,0.00018904,2]
[373200207,1752903060077,-460.0,0.00018904,2]
[373200208,1752903060086,-460.0,0.00018904,2]
[373200209,1752903060096,-1301.23,0.00018904,2]
[373200210,1752903060105,-469.98334508,0.00018904,2]
[373200211,1752903060115,-3822.72,0.00018904,2]
[373200212,1752903060124,-460.0,0.00018904,2]
[373200213,1752903060134,-553.85829011,0.00018904,2]
[373200214,1752903060144,-569.23,0.00018904,2]
[373200215,1752903060154,-460.0,0.00018904,2]
[373200216,1752903060164,-460.0,0.00018904,2]
[373200217,1752903060173,-460.0,0.00018904,2]
[373200218,1752903060183,-1086.82,0.00018904,2]
[373200219,1752903060193,-320.58843696,0.00018904,2]
[373200220,1752903060202,-460.0,0.00018904,2]
[373200221,1752903060211,-906.52,0.00018904,2]
[373200222,1752903060220,-460.0,0.00018904,2]
[373200223,1752903060230,-469.84,0.00018904,2]
[373200224,1752903060239,-3126.57,0.00018904,2]
[373200225,1752903060249,-360.0,0.00018929,2]
[373200226,1752903060258,-500.0,0.00018976,2]
[373200227,1752903060268,-151.0,0.00019,2]
[373200228,1752903060278,-4890.36116353,0.00019107,2]
[373200229,1752903060287,-151.0,0.00019107,2]
[373200230,1752903060297,-151.0,0.00019107,2]
[373200231,1752903060306,-151.0,0.00019107,2]
[373200232,1752903060316,-151.0,0.00019107,2]
[373200233,1752903060326,-151.0,0.00019107,2]
[373200234,1752903060335,-151.0,0.00019107,2]
[373200235,1752903060345,-151.0,0.00019107,2]
[373200236,1752903060354,-151.0,0.00019107,2]
[373200237,1752903060366,-460.0,0.00019178,2]
[373200238,1752903060376,-460.0,0.00019178,2]
[373200239,1752903060385,-460.0,0.00019178,2]
[373200240,1752903060395,-460.0,0.00019178,2]
[373200241,1752903060405,-460.0,0.00019178,2]
[373200242,1752903060415,-1074.17,0.00019178,2]
[373200243,1752903060424,-4435.91,0.00019178,2]
[373200244,1752903060434,-151.982926,0.00019178,2]
[373200245,1752903060444,-460.0,0.00019178,2]
[373200246,1752903060453,-460.0,0.00019178,2]
[373200247,1752903060463,-151.536565,0.00019178,2]
[373200248,1752903060473,-460.0,0.00019178,2]
[373200249,1752903060482,-257.76349841,0.00019178,2]
[373200250,1752903060492,-460.0,0.00019178,2]
[373200251,1752903060502,-476.99766685,0.00019178,2]
[373200252,1752903060512,-1978.9,0.00019178,2]
[373200253,1752903060522,-460.0,0.00019178,2]
[373200254,1752903060532,-460.0,0.00019178,2]
[373200255,1752903060542,-1505.02,0.00019178,2]
[373200256,1752903060552,-460.0,0.00019178,2]
[373200257,1752903060561,-288.01346243,0.00019178,2]
[373200258,1752903060571,-460.0,0.00019178,2]
[373200259,1752903060581,-460.0,0.00019178,2]
[373200260,1752903060591,-460.0,0.00019178,2]
[373200261,1752903060602,-1442.04,0.00019178,2]
[373200262,1752903060611,-460.0,0.00019178,2]
[373200263,1752903060621,-584.9,0.00019178,2]
[373200264,1752903060631,-633.79,0.00019178,2]
[373200265,1752903060640,-460.0,0.00019178,2]
[373200266,1752903060650,-2208.01,0.00019178,2]
[373200267,1752903060661,-2144.38,0.00019178,2]
[373200268,1752903060671,-460.0,0.00019178,2]
[373200269,1752903060680,-474.89216432,0.00019178,2]
[373200270,1752903060690,-460.0,0.00019178,2]
[373200271,1752903060701,-782.71,0.00019178,2]
[373200272,1752903060710,-1171.09,0.00019178,2]
[373200273,1752903060720,-460.0,0.00019178,2]
[373200274,1752903060731,-1364.49,0.00019178,2]
[373200275,1752903060741,-461.87,0.00019178,2]
[373200276,1752903060753,-583.74,0.00019178,2]
[373200277,1752903060763,-460.0,0.00019178,2]
[373200278,1752903060774,-460.0,0.00019178,2]
[373200279,1752903060785,-759.08,0.00019178,2]
[373200280,1752903060796,-1623.5,0.00019178,2]
[373200281,1752903060806,-460.0,0.00019178,2]
[373200282,1752903060816,-460.0,0.00019178,2]
[373200283,1752903060825,-491.03,0.00019178,2]
[373200284,1752903060835,-525.35,0.00019178,2]
[373200285,1752903060844,-460.0,0.00019178,2]
[373200286,1752903060854,-473.37,0.00019178,2]
[373200287,1752903060865,-2274.07,0.00019178,2]
[373200288,1752903060876,-460.0,0.00019178,2]
[373200289,1752903060887,-1301.23,0.00019178,2]
[373200290,1752903060897,-3822.72,0.00019178,2]
[373200291,1752903060908,-460.0,0.00019178,2]
[373200292,1752903060917,-151.498239,0.00019178,2]
[373200293,1752903060926,-151.0,0.00019178,2]
[373200294,1752903060935,-569.23,0.00019178,2]
[373200295,1752903060945,-460.0,0.00019178,2]
[373200296,1752903060955,-460.0,0.00019178,2]
[373200297,1752903060964,-151.0,0.00019178,2]
[373200298,1752903060976,-460.0,0.00019178,2]
[373200299,1752903060985,-1086.82,0.00019178,2]
[373200300,1752903060995,-460.0,0.00019178,2]
[373200301,1752903061004,-906.52,0.00019178,2]
[373200302,1752903061014,-460.0,0.00019178,2]
[373200303,1752903061023,-3126.57,0.00019178,2]
[373200304,1752903061032,-5000.0,0.00019178,2]
[373200305,1752903061042,-5000.0,0.00019178,2]
[373200306,1752903061051,-171.15023,0.00019178,2]
[373200307,1752903061060,-151.208484,0.00019186,2]
[373200308,1752903061070,-151.0,0.00019186,2]
[373200309,1752903061079,-198.453047,0.00019186,2]
[373200310,1752903061088,-151.0,0.00019186,2]
[373200311,1752903061175,-1000.0,0.00019207,2]
[373200312,1752903061186,-500.0,0.0001925,2]
[373200313,1752903061195,-170.18971475,0.00019281,2]
[373200314,1752903061204,-500.0,0.00019281,2]
[373200315,1752903061213,-150.44874067,0.00019281,2]
[373200316,1752903061223,-305.33086894,0.00019281,2]
[373200317,1752903061232,-501.51906247,0.00019281,2]
[373200318,1752903061242,-500.0,0.00019288,2]
[373200319,1752903061251,-618.97160078,0.00019288,2]
[373200320,1752903061261,-501.04531724,0.00019288,2]
[373200321,1752903061270,-428.975799,0.00019329,2]
[373200322,1752903061279,-428.975799,0.00019329,2]
[373200323,1752903061289,-151.0,0.00019329,2]
[373200324,1752903061299,-151.0,0.00019329,2]
[373200325,1752903061308,-228.289233,0.00019329,2]
[373200326,1752903061318,-228.289233,0.00019329,2]
[373200327,1752903061327,-151.0,0.00019329,2]
[373200328,1752903061337,-151.0,0.00019329,2]
[373200329,1752903061347,-151.0,0.00019329,2]
[373200330,1752903061357,-151.0,0.00019329,2]
[373200331,1752903061370,-309.301731,0.00019329,2]
[373200332,1752903061380,-309.301731,0.00019329,2]
[373200333,1752903061389,-253.751263,0.00019329,2]
[373200334,1752903061399,-253.751263,0.00019329,2]
[373200335,1752903061408,-151.0,0.00019329,2]
[373200336,1752903061417,-151.0,0.00019329,2]
[373200337,1752903061427,-151.0,0.00019329,2]
[373200338,1752903061436,-203.956326,0.00019329,2]
[373200339,1752903061446,-178.585793,0.00019329,2]
[373200340,1752903061456,-203.956326,0.00019329,2]
[373200341,1752903061467,-178.585793,0.00019329,2]
[373200342,1752903061476,-1201.486897,0.00019329,2]
[373200343,1752903061486,-1201.486897,0.00019329,2]
[373200344,1752903061495,-99221.46911286,0.00019329,2]
[373200345,1752903061505,-4890.36116353,0.00019348,2]
[373200346,1752903061515,-500.0,0.00019364,2]
[373200347,1752903061524,-151.0,0.000194,2]
[373200348,1752903061534,-460.0,0.00019452,2]
[373200349,1752903061543,-460.0,0.00019452,2]
[373200350,1752903061552,-151.282927,0.00019452,2]
[373200351,1752903061562,-151.0,0.00019452,2]
[373200352,1752903061571,-151.0,0.00019452,2]
[373200353,1752903061581,-200.399393,0.00019452,2]
[373200354,1752903061591,-200.399393,0.00019452,2]
[373200355,1752903061600,-151.0,0.00019452,2]
[373200356,1752903061609,-460.0,0.00019452,2]
[373200357,1752903061619,-460.0,0.00019452,2]
[373200358,1752903061628,-548.07,0.00019452,2]
[373200359,1752903061638,-282.95300636,0.00019452,2]
[373200360,1752903061647,-1074.17,0.00019452,2]
[373200361,1752903061657,-4435.91,0.00019452,2]
[373200362,1752903061667,-476.15220808,0.00019452,2]
[373200363,1752903061676,-460.0,0.00019452,2]
[373200364,1752903061686,-586.56849972,0.00019452,2]
[373200365,1752903061695,-460.0,0.00019452,2]
[373200366,1752903061704,-1978.9,0.00019452,2]
[373200367,1752903061714,-460.0,0.00019452,2]
[373200368,1752903061724,-460.0,0.00019452,2]
[373200369,1752903061733,-159.334252,0.00019452,2]
[373200370,1752903061743,-460.0,0.00019452,2]
[373200371,1752903061756,-1505.02,0.00019452,2]
[373200372,1752903061767,-151.0,0.00019452,2]
[373200373,1752903061777,-151.0,0.00019452,2]
[373200374,1752903061786,-151.0,0.00019452,2]
[373200375,1752903061796,-460.0,0.00019452,2]
[373200376,1752903061807,-460.0,0.00019452,2]
[373200377,1752903061817,-410.668745,0.00019452,2]
[373200378,1752903061827,-410.668745,0.00019452,2]
[373200379,1752903061836,-1442.04,0.00019452,2]
[373200380,1752903061845,-177.22860557,0.00019452,2]
[373200381,1752903061855,-584.9,0.00019452,2]
[373200382,1752903061864,-633.79,0.00019452,2]
[373200383,1752903061877,-460.0,0.00019452,2]
[373200384,1752903061896,-2208.01,0.00019452,2]
[373200385,1752903061912,-2144.38,0.00019452,2]
[373200386,1752903061930,-460.0,0.00019452,2]
[373200387,1752903061948,-460.0,0.00019452,2]
[373200388,1752903061965,-782.71,0.00019452,2]
[373200389,1752903061982,-1171.09,0.00019452,2]
[373200390,1752903061998,-460.0,0.00019452,2]
[373200391,1752903062014,-1364.49,0.00019452,2]
[373200392,1752903062030,-461.87,0.00019452,2]
[373200393,1752903062043,-583.74,0.00019452,2]
[373200394,1752903062059,-460.0,0.00019452,2]
[373200395,1752903062074,-460.0,0.00019452,2]
[373200396,1752903062091,-759.08,0.00019452,2]
[373200397,1752903062109,-1623.5,0.00019452,2]
[373200398,1752903062120,-460.0,0.00019452,2]
[373200399,1752903062134,-460.0,0.00019452,2]
[373200400,1752903062151,-491.03,0.00019452,2]
[373200401,1752903062165,-525.35,0.00019452,2]
[373200402,1752903062181,-460.0,0.00019452,2]
[373200403,1752903062193,-473.37,0.00019452,2]
[373200404,1752903062207,-2274.07,0.00019452,2]
[373200405,1752903062220,-460.0,0.00019452,2]
[373200406,1752903062233,-1301.23,0.00019452,2]
[373200407,1752903062246,-3822.72,0.00019452,2]
[373200408,1752903062259,-460.0,0.00019452,2]
[373200409,1752903062272,-569.23,0.00019452,2]
[373200410,1752903062286,-460.0,0.00019452,2]
[373200411,1752903062299,-460.0,0.00019452,2]
[373200412,1752903062313,-460.0,0.00019452,2]
[373200413,1752903062326,-1086.82,0.00019452,2]
[373200414,1752903062339,-460.0,0.00019452,2]
[373200415,1752903062352,-906.52,0.00019452,2]
[373200416,1752903062370,-460.0,0.00019452,2]
[373200417,1752903062383,-358.108017,0.00019463,2]
[373200418,1752903062396,-460.0,0.00019477,2]
[373200419,1752903062412,-587.0,0.00019514,2]
[373200420,1752903062425,-500.0,0.00019524,2]
[373200421,1752903062440,-4890.36116353,0.0001959,2]
[373200422,1752903062453,-6635.69935502,0.00019626,2]
[373200423,1752903062467,-151.0,0.00019659,2]
[373200424,1752903062480,-151.0,0.00019659,2]
[373200425,1752903062494,-151.0,0.00019659,2]
[373200426,1752903062507,-151.0,0.00019659,2]
[373200427,1752903062520,-151.0,0.00019659,2]
[373200428,1752903062534,-460.0,0.00019726,2]
[373200429,1752903062548,-460.0,0.00019726,2]
[373200430,1752903062560,-460.0,0.00019726,2]
[373200431,1752903062574,-460.0,0.00019726,2]
[373200432,1752903062587,-1074.17,0.00019726,2]
[373200433,1752903062600,-4435.91,0.00019726,2]
[373200434,1752903062612,-571.04,0.00019726,2]
[373200435,1752903062625,-203.08861171,0.00019726,2]
[373200436,1752903062638,-293.224357,0.00019726,2]
[373200437,1752903062651,-151.0,0.00019726,2]
[373200438,1752903062665,-151.0,0.00019726,2]
[373200439,1752903062679,-151.0,0.00019726,2]
[373200440,1752903062691,-1978.9,0.00019726,2]
[373200441,1752903062703,-460.0,0.00019726,2]
[373200442,1752903062717,-460.0,0.00019726,2]
[373200443,1752903062731,-460.0,0.00019726,2]
[373200444,1752903062743,-1505.02,0.00019726,2]
[373200445,1752903062756,-460.0,0.00019726,2]
[373200446,1752903062768,-460.0,0.00019726,2]
[373200447,1752903062781,-151.0,0.00019726,2]
[373200448,1752903062794,-155.803682,0.00019726,2]
[373200449,1752903062807,-1442.04,0.00019726,2]
[373200450,1752903062820,-584.9,0.00019726,2]
[373200451,1752903062834,-633.79,0.00019726,2]
[373200452,1752903062848,-460.0,0.00019726,2]
[373200453,1752903062858,-2208.01,0.00019726,2]
[373200454,1752903062868,-2144.38,0.00019726,2]
[373200455,1752903063010,-460.0,0.00019726,2]
[373200456,1752903063020,-460.0,0.00019726,2]
[373200457,1752903063030,-782.71,0.00019726,2]
[373200458,1752903063040,-1171.09,0.00019726,2]
[373200459,1752903063050,-460.0,0.00019726,2]
[373200460,1752903063059,-1364.49,0.00019726,2]
[373200461,1752903063068,-461.87,0.00019726,2]
[373200462,1752903063079,-583.74,0.00019726,2]
[373200463,1752903063088,-460.0,0.00019726,2]
[373200464,1752903063098,-460.0,0.00019726,2]
[373200465,1752903063107,-759.08,0.00019726,2]
[373200466,1752903063118,-1623.5,0.00019726,2]
[373200467,1752903063127,-460.0,0.00019726,2]
[373200468,1752903063137,-460.0,0.00019726,2]
[373200469,1752903063146,-491.03,0.00019726,2]
[373200470,1752903063155,-525.35,0.00019726,2]
[373200471,1752903063165,-460.0,0.00019726,2]
[373200472,1752903063175,-473.37,0.00019726,2]
[373200473,1752903063185,-2274.07,0.00019726,2]
[373200474,1752903063194,-460.0,0.00019726,2]
[373200475,1752903063204,-1301.23,0.00019726,2]
[373200476,1752903063213,-3822.72,0.00019726,2]
[373200477,1752903063223,-460.0,0.00019726,2]
[373200478,1752903063232,-569.23,0.00019726,2]
[373200479,1752903063243,-460.0,0.00019726,2]
[373200480,1752903063252,-460.0,0.00019726,2]
[373200481,1752903063262,-460.0,0.00019726,2]
[373200482,1752903063272,-1086.82,0.00019726,2]
[373200483,1752903063281,-460.0,0.00019726,2]
[373200484,1752903063291,-906.52,0.00019726,2]
[373200485,1752903063301,-460.0,0.00019726,2]
[373200486,1752903063311,-800.0,0.00019734,2]
[373200487,1752903063320,-165.886091,0.00019736,2]
[373200488,1752903063331,-151.0,0.00019736,2]
[373200489,1752903063340,-25000.0,0.00019736,2]
[373200490,1752903063350,-151.0,0.00019736,2]
[373200491,1752903063360,-151.0,0.00019736,2]
[373200492,1752903063370,-151.0,0.00019736,2]
[373200493,1752903063383,-151.0,0.00019736,2]
[373200494,1752903063392,-151.0,0.00019736,2]
[373200495,1752903063402,-716.45673598,0.00019736,2]
[373200496,1752903063414,-151.0,0.00019736,2]
[373200497,1752903063424,-151.0,0.00019736,2]
[373200498,1752903063434,-151.0,0.00019736,2]
[373200499,1752903063444,-151.0,0.00019736,2]
[373200500,1752903063455,-3801.642,0.00019736,2]
[373200501,1752903063465,-151.0,0.00019736,2]
[373200502,1752903063475,-151.0,0.00019736,2]
[373200503,1752903063484,-151.0,0.00019736,2]
[373200504,1752903063494,-151.0,0.00019736,2]
[373200505,1752903063504,-151.0,0.00019736,2]
[373200506,1752903063514,-151.0,0.00019736,2]
[373200507,1752903063524,-151.0,0.00019736,2]
[373200508,1752903063533,-151.0,0.00019736,2]
[373200509,1752903063543,-151.0,0.00019736,2]
[373200510,1752903063553,-151.0,0.00019736,2]
[373200511,1752903063563,-151.0,0.00019736,2]
[373200512,1752903063574,-207.4,0.00019736,2]
[373200513,1752903063584,-151.0,0.00019736,2]
[373200514,1752903063594,-1500.0,0.00019755,2]
[373200515,1752903063603,-3942.302754,0.00019791,2]
[373200516,1752903063613,-500.0,0.00019798,2]
[373200517,1752903063623,-503.40908628,0.00019829,2]
[373200518,1752903063633,-4890.36116353,0.00019831,2]
[373200519,1752903063642,-501.15015757,0.00019836,2]
[373200520,1752903063651,-305.40284297,0.00019846,2]
[373200521,1752903063662,-1000.0,0.00019912,2]
[373200522,1752903063672,-47956.5651229,0.00019989,2]
[373200523,1752903063682,-460.0,0.0002,2]
[373200524,1752903063693,-281.75465443,0.0002,2]
[373200525,1752903063703,-460.0,0.0002,2]
[373200526,1752903063713,-460.0,0.0002,2]
[373200527,1752903063722,-1074.17,0.0002,2]
[373200528,1752903063732,-4435.91,0.0002,2]
[373200529,1752903063743,-1978.9,0.0002,2]
[373200530,1752903063753,-460.0,0.0002,2]
[373200531,1752903063763,-460.0,0.0002,2]
[373200532,1752903063772,-460.0,0.0002,2]
[373200533,1752903063782,-1505.02,0.0002,2]
[373200534,1752903063792,-460.0,0.0002,2]
[373200535,1752903063802,-1442.04,0.0002,2]
[373200536,1752903063811,-584.9,0.0002,2]
[373200537,1752903063821,-633.79,0.0002,2]
[373200538,1752903063830,-460.0,0.0002,2]
[373200539,1752903063839,-2208.01,0.0002,2]
[373200540,1752903063848,-2144.38,0.0002,2]
[373200541,1752903063858,-460.0,0.0002,2]
[373200542,1752903063868,-782.71,0.0002,2]
[373200543,1752903063878,-460.0,0.0002,2]
[373200544,1752903063888,-1171.09,0.0002,2]
[373200545,1752903063897,-460.0,0.0002,2]
[373200546,1752903063907,-1364.49,0.0002,2]
[373200547,1752903063917,-461.87,0.0002,2]
[373200548,1752903063928,-583.74,0.0002,2]
[373200549,1752903063938,-460.0,0.0002,2]
[373200550,1752903063948,-460.0,0.0002,2]
[373200551,1752903063958,-759.08,0.0002,2]
[373200552,1752903063968,-1623.5,0.0002,2]
[373200553,1752903063978,-460.0,0.0002,2]
[373200554,1752903063987,-460.0,0.0002,2]
[373200555,1752903063997,-491.03,0.0002,2]
[373200556,1752903064007,-525.35,0.0002,2]
[373200557,1752903064017,-460.0,0.0002,2]
[373200558,1752903064027,-473.37,0.0002,2]
[373200559,1752903064036,-2274.07,0.0002,2]
[373200560,1752903064047,-460.0,0.0002,2]
[373200561,1752903064056,-1301.23,0.0002,2]
[373200562,1752903064065,-3822.72,0.0002,2]
[373200563,1752903064075,-460.0,0.0002,2]
[373200564,1752903064084,-569.23,0.0002,2]
[373200565,1752903064095,-460.0,0.0002,2]
[373200566,1752903064105,-460.0,0.0002,2]
[373200567,1752903064115,-460.0,0.0002,2]
[373200568,1752903064124,-1086.82,0.0002,2]
[373200569,1752903064134,-460.0,0.0002,2]
[373200570,1752903064144,-906.52,0.0002,2]
[373200571,1752903064154,-470.44713192,0.0002,2]
[373200572,1752903064164,-560.0,0.00020025,2]
[373200573,1752903064174,-500.0,0.00020072,2]
[373200574,1752903064183,-4890.36116353,0.00020072,2]
[373200575,1752903064193,-151.0,0.00020119,2]
[373200576,1752903064202,-152.06639,0.00020119,2]
[373200577,1752903064212,-301.290918,0.00020119,2]
[373200578,1752903064222,-152.450528,0.00020119,2]
[373200579,1752903064231,-418.278103,0.00020187,2]
[373200580,1752903064241,-6635.69935498,0.00020258,2]
[373200581,1752903064250,-460.0,0.00020273,2]
[373200582,1752903064260,-151.0,0.00020273,2]
[373200583,1752903064270,-151.0,0.00020273,2]
[373200584,1752903064280,-151.0,0.00020273,2]
[373200585,1752903064289,-151.0,0.00020273,2]
[373200586,1752903064299,-460.0,0.00020273,2]
[373200587,1752903064308,-460.0,0.00020273,2]
[373200588,1752903064318,-200.919079,0.00020273,2]
[373200589,1752903064327,-200.919079,0.00020273,2]
[373200590,1752903064337,-151.0,0.00020273,2]
[373200591,1752903064347,-1074.17,0.00020273,2]
[373200592,1752903064356,-151.0,0.00020273,2]
[373200593,1752903064366,-151.0,0.00020273,2]
[373200594,1752903064379,-4435.91,0.00020273,2]
[373200595,1752903064388,-207.090637,0.00020273,2]
[373200596,1752903064398,-151.0,0.00020273,2]
[373200597,1752903064409,-1978.9,0.00020273,2]
[373200598,1752903064419,-310.8,0.00020273,2]
[373200599,1752903064428,-460.0,0.00020273,2]
[373200600,1752903064438,-255.68689173,0.00020273,2]
[373200601,1752903064448,-1505.02,0.00020273,2]
[373200602,1752903064458,-460.0,0.00020273,2]
[373200603,1752903064467,-1442.04,0.00020273,2]
[373200604,1752903064477,-584.9,0.00020273,2]
[373200605,1752903064487,-633.79,0.00020273,2]
[373200606,1752903064498,-594.99335677,0.00020273,2]
[373200607,1752903064513,-2208.01,0.00020273,2]
[373200608,1752903064523,-2144.38,0.00020273,2]
[373200609,1752903064533,-460.0,0.00020273,2]
[373200610,1752903064546,-782.71,0.00020273,2]
[373200611,1752903064555,-460.0,0.00020273,2]
[373200612,1752903064566,-1171.09,0.00020273,2]
[373200613,1752903064575,-460.0,0.00020273,2]
[373200614,1752903064585,-1364.49,0.00020273,2]
[373200615,1752903064594,-461.87,0.00020273,2]
[373200616,1752903064604,-583.74,0.00020273,2]
[373200617,1752903064614,-460.0,0.00020273,2]
[373200618,1752903064624,-460.0,0.00020273,2]
[373200619,1752903064633,-759.08,0.00020273,2]
[373200620,1752903064643,-1623.5,0.00020273,2]
[373200621,1752903064654,-151.0,0.00020273,2]
[373200622,1752903064665,-460.0,0.00020273,2]
[373200623,1752903064675,-460.0,0.00020273,2]
[373200624,1752903064684,-491.03,0.00020273,2]
[373200625,1752903064694,-525.35,0.00020273,2]
[373200626,1752903064703,-392.04858829,0.00020273,2]
[373200627,1752903064713,-473.37,0.00020273,2]
[373200628,1752903064723,-2274.07,0.00020273,2]
[373200629,1752903064733,-460.0,0.00020273,2]
[373200630,1752903064743,-1301.23,0.00020273,2]
[373200631,1752903064753,-3822.72,0.00020273,2]
[373200632,1752903064762,-151.0,0.00020273,2]
[373200633,1752903064772,-174.020776,0.00020273,2]
[373200634,1752903064781,-460.0,0.00020273,2]
[373200635,1752903064790,-569.23,0.00020273,2]
[373200636,1752903064800,-460.0,0.00020273,2]
[373200637,1752903064810,-460.0,0.00020273,2]
[373200638,1752903064820,-418.53398278,0.00020273,2]
[373200639,1752903064830,-1086.82,0.00020273,2]
[373200640,1752903064839,-339.9,0.00020273,2]
[373200641,1752903064849,-203.956326,0.00020273,2]
[373200642,1752903064859,-906.52,0.00020273,2]
[373200643,1752903064870,-203.956326,0.00020273,2]
[373200644,1752903064880,-1201.486897,0.00020273,2]
[373200645,1752903064890,-1201.486897,0.00020273,2]
[373200646,1752903064899,-428.975799,0.00020284,2]
[373200647,1752903064911,-428.975799,0.00020284,2]
[373200648,1752903064922,-151.0,0.00020284,2]
[373200649,1752903064932,-151.0,0.00020284,2]
[373200650,1752903064942,-228.289233,0.00020284,2]
[373200651,1752903064951,-228.289233,0.00020284,2]
[373200652,1752903064962,-151.0,0.00020284,2]
[373200653,1752903064971,-151.0,0.00020284,2]
[373200654,1752903064981,-151.0,0.00020284,2]
[373200655,1752903064991,-309.301731,0.00020284,2]
[373200656,1752903065000,-309.301731,0.00020284,2]
[373200657,1752903065010,-253.751263,0.00020284,2]
[373200658,1752903065020,-253.751263,0.00020284,2]
[373200659,1752903065030,-151.0,0.00020284,2]
[373200660,1752903065040,-178.585793,0.00020284,2]
[373200661,1752903065050,-178.585793,0.00020284,2]
[373200662,1752903065060,-25000.0,0.00020284,2]
[373200663,1752903065070,-217.40428983,0.00020284,2]
[373200664,1752903065080,-1959.98390786,0.00020303,2]
[373200665,1752903065090,-4890.36116353,0.00020314,3]
[373200666,1752903065099,-12612.80205064,0.0002032,3]
[373200667,1752903065109,-500.0,0.00020346,2]
[373200668,1752903065119,-1500.0,0.0002046,2]
[373200669,1752903065223,-476.34170116,0.0002049,3]
[373200670,1752903065235,-214.52603969,0.0002049,3]
[373200671,1752903065246,-460.0,0.00020547,2]
[373200672,1752903065255,-460.0,0.00020547,2]
[373200673,1752903065265,-231.56,0.00020547,2]
[373200674,1752903065275,-1074.17,0.00020547,2]
[373200675,1752903065285,-4435.91,0.00020547,2]